{"text_format":"1","workbook":"xlsx","n_sheets":2,"sheets":["Base données","Tableau d'analyse"],"not_rendered":{"charts":0,"images":0,"macros":0,"external_links":0,"defined_names":1,"comments":0,"pivot_tables":0},"unopened":[],"bounds":{"document_bytes":16777216,"sheet_cells":100000,"rows_first":2000,"rows_last":500,"rows_between":2000,"halvings":0,"cell_chars":16384,"cell_head_chars":4096},"cells_cut":0,"cells_raw":0,"read":"whole","date_system":"1900"}

{"sheet":"Base données","index":0,"n_rows":24,"n_cols":8,"rows_kept":24,"cut":false,"hidden":false,"merged":[[2,4,2,7]]}
[]
[]
[null,null,null,"Caisses -  Organismes","BASE DE DONNEES POUR LE TABLEAU D'ANALYSE DES BALANCES TRIMESTRIELLES"]
[null,null,1,"UR",21,"Affranchissement",42,"Indemnité km "]
[null,null,2,"CAR",22,"Carburant M. J",43,"Indemnité km pénal"]
[null,null,3,"NOV",23,"Carburant C. L",44]
[null,null,4,"OP",24,"Charges congés payés",45,"La Poste (retrait courrier)"]
[null,null,5,"CO",25,null,46,"Leasing balance affranchissement "]
[null,null,6,"U sal",26,"Cotisation C",47,"Leasing copieur"]
[null,null,7,"CAR sal",27,"Déplacements M. J",48,"Leasing étude"]
[null,null,8,"CIR sal",28,"Déplacements C. L",49,"Leasing ordinateur"]
[null,null,9,null,29,"Documentations",50,"Leasing voiture M. J"]
[null,null,10,null,30,null,51,"Leasing voiture C. L "]
[null,null,11,null,31,"eau",52,"Loyer étude"]
[null,null,12,"DP8-DP1",32,"Entretien locaux",53,"Médecine du travail"]
[null,null,13,"DP10",33,"Entretien voiture M. J",54,"Réception"]
[null,null,14,null,34,"Entretien voiture C. L/ maintenance informatique",55,"Réception M. J"]
[null,null,15,null,35,"Fournitures de bureau",56,"Réception C. L"]
[null,null,null,"Charges et frais divers",36,"Frais banque",57]
[null,null,16,"Actes dossiers",37,"Gaz - Electricité",58,"Salaires"]
[null,null,17,"Assurance Ch",38,null,59]
[null,null,18,"Assurance perte",39,"Honoraires co",60,"Téléphone fixe"]
[null,null,19,"Assurance voiture M. J",40,"Honoraires cr",61,"Téléphone M. J"]
[null,null,20,"Assurance voiture C. L",41,"Honoraires déb",62,"Téléphone C. L"]

{"sheet":"Tableau d'analyse","index":1,"n_rows":40,"n_cols":50,"rows_kept":40,"cut":false,"hidden":false,"merged":[[3,39,3,43],[3,45,3,49],[3,3,3,7],[3,9,3,13],[3,15,3,19],[3,21,3,25],[3,27,3,31],[3,33,3,37]]}
[]
[]
[]
[null,null,"COMPTES COMPTABLES",2011,null,null,null,null,null,2012,null,null,null,null,null,2013,null,null,null,null,null,2014,null,null,null,null,null,2015,null,null,null,null,null,2016]
[null,"code",null,"1er trimestre","2ème trimestre","3ème trimestre","4ème trimestre","TOTAL",null,"1er trimestre","2ème trimestre","3ème trimestre","4ème trimestre","TOTAL",null,"1er trimestre","2ème trimestre","3ème trimestre","4ème trimestre","TOTAL",null,"1er trimestre","2ème trimestre","3ème trimestre","4ème trimestre","TOTAL",null,"1er trimestre","2ème trimestre","3ème trimestre","4ème trimestre","TOTAL",null,"1er trimestre","2ème trimestre","3ème trimestre","4ème trimestre","TOTAL",null,1,2,3,4,"total",null,1,2,3,4,"total"]
[]
[]
[null,1,{"$f":"IF(ISERROR(INDEX('Base données'!$D$4:$D$24,MATCH('Tableau d''analyse'!B8,'Base données'!$C$4:$C$24,0))),IF(ISERROR(INDEX('Base données'!$F$4:$F$24,MATCH('Tableau d''analyse'!B8,'Base données'!$E$4:$E$24,0))),IF(ISERROR(INDEX('Base données'!$H$4:$H$24,MATCH('Tableau d''analyse'!B8,'Base données'!$G$4:$G$24,0))),\"\",INDEX('Base données'!$H$4:$H$24,MATCH('Tableau d''analyse'!B8,'Base données'!$G$4:$G$24,0))),INDEX('Base données'!$F$4:$F$24,MATCH('Tableau d''analyse'!B8,'Base données'!$E$4:$E$24,0))),INDEX('Base données'!$D$4:$D$24,MATCH('Tableau d''analyse'!B8,'Base données'!$C$4:$C$24,0)))","v":"UR"}]
[null,3,{"$f":"IF(ISERROR(INDEX('Base données'!$D$4:$D$24,MATCH('Tableau d''analyse'!B9,'Base données'!$C$4:$C$24,0))),IF(ISERROR(INDEX('Base données'!$F$4:$F$24,MATCH('Tableau d''analyse'!B9,'Base données'!$E$4:$E$24,0))),IF(ISERROR(INDEX('Base données'!$H$4:$H$24,MATCH('Tableau d''analyse'!B9,'Base données'!$G$4:$G$24,0))),\"\",INDEX('Base données'!$H$4:$H$24,MATCH('Tableau d''analyse'!B9,'Base données'!$G$4:$G$24,0))),INDEX('Base données'!$F$4:$F$24,MATCH('Tableau d''analyse'!B9,'Base données'!$E$4:$E$24,0))),INDEX('Base données'!$D$4:$D$24,MATCH('Tableau d''analyse'!B9,'Base données'!$C$4:$C$24,0)))","v":"NOV"}]
[null,3,{"$f":"IF(ISERROR(INDEX('Base données'!$D$4:$D$24,MATCH('Tableau d''analyse'!B10,'Base données'!$C$4:$C$24,0))),IF(ISERROR(INDEX('Base données'!$F$4:$F$24,MATCH('Tableau d''analyse'!B10,'Base données'!$E$4:$E$24,0))),IF(ISERROR(INDEX('Base données'!$H$4:$H$24,MATCH('Tableau d''analyse'!B10,'Base données'!$G$4:$G$24,0))),\"\",INDEX('Base données'!$H$4:$H$24,MATCH('Tableau d''analyse'!B10,'Base données'!$G$4:$G$24,0))),INDEX('Base données'!$F$4:$F$24,MATCH('Tableau d''analyse'!B10,'Base données'!$E$4:$E$24,0))),INDEX('Base données'!$D$4:$D$24,MATCH('Tableau d''analyse'!B10,'Base données'!$C$4:$C$24,0)))","v":"NOV"}]
[null,17,{"$f":"IF(ISERROR(INDEX('Base données'!$D$4:$D$24,MATCH('Tableau d''analyse'!B11,'Base données'!$C$4:$C$24,0))),IF(ISERROR(INDEX('Base données'!$F$4:$F$24,MATCH('Tableau d''analyse'!B11,'Base données'!$E$4:$E$24,0))),IF(ISERROR(INDEX('Base données'!$H$4:$H$24,MATCH('Tableau d''analyse'!B11,'Base données'!$G$4:$G$24,0))),\"\",INDEX('Base données'!$H$4:$H$24,MATCH('Tableau d''analyse'!B11,'Base données'!$G$4:$G$24,0))),INDEX('Base données'!$F$4:$F$24,MATCH('Tableau d''analyse'!B11,'Base données'!$E$4:$E$24,0))),INDEX('Base données'!$D$4:$D$24,MATCH('Tableau d''analyse'!B11,'Base données'!$C$4:$C$24,0)))","v":"Assurance Ch"}]
[null,18,{"$f":"IF(ISERROR(INDEX('Base données'!$D$4:$D$24,MATCH('Tableau d''analyse'!B12,'Base données'!$C$4:$C$24,0))),IF(ISERROR(INDEX('Base données'!$F$4:$F$24,MATCH('Tableau d''analyse'!B12,'Base données'!$E$4:$E$24,0))),IF(ISERROR(INDEX('Base données'!$H$4:$H$24,MATCH('Tableau d''analyse'!B12,'Base données'!$G$4:$G$24,0))),\"\",INDEX('Base données'!$H$4:$H$24,MATCH('Tableau d''analyse'!B12,'Base données'!$G$4:$G$24,0))),INDEX('Base données'!$F$4:$F$24,MATCH('Tableau d''analyse'!B12,'Base données'!$E$4:$E$24,0))),INDEX('Base données'!$D$4:$D$24,MATCH('Tableau d''analyse'!B12,'Base données'!$C$4:$C$24,0)))","v":"Assurance perte"}]
[null,19,{"$f":"IF(ISERROR(INDEX('Base données'!$D$4:$D$24,MATCH('Tableau d''analyse'!B13,'Base données'!$C$4:$C$24,0))),IF(ISERROR(INDEX('Base données'!$F$4:$F$24,MATCH('Tableau d''analyse'!B13,'Base données'!$E$4:$E$24,0))),IF(ISERROR(INDEX('Base données'!$H$4:$H$24,MATCH('Tableau d''analyse'!B13,'Base données'!$G$4:$G$24,0))),\"\",INDEX('Base données'!$H$4:$H$24,MATCH('Tableau d''analyse'!B13,'Base données'!$G$4:$G$24,0))),INDEX('Base données'!$F$4:$F$24,MATCH('Tableau d''analyse'!B13,'Base données'!$E$4:$E$24,0))),INDEX('Base données'!$D$4:$D$24,MATCH('Tableau d''analyse'!B13,'Base données'!$C$4:$C$24,0)))","v":"Assurance voiture M. J"}]
[null,null,{"$f":"IF(ISERROR(INDEX('Base données'!$D$4:$D$24,MATCH('Tableau d''analyse'!B14,'Base données'!$C$4:$C$24,0))),IF(ISERROR(INDEX('Base données'!$F$4:$F$24,MATCH('Tableau d''analyse'!B14,'Base données'!$E$4:$E$24,0))),IF(ISERROR(INDEX('Base données'!$H$4:$H$24,MATCH('Tableau d''analyse'!B14,'Base données'!$G$4:$G$24,0))),\"\",INDEX('Base données'!$H$4:$H$24,MATCH('Tableau d''analyse'!B14,'Base données'!$G$4:$G$24,0))),INDEX('Base données'!$F$4:$F$24,MATCH('Tableau d''analyse'!B14,'Base données'!$E$4:$E$24,0))),INDEX('Base données'!$D$4:$D$24,MATCH('Tableau d''analyse'!B14,'Base données'!$C$4:$C$24,0)))","v":""}]
[null,20,{"$f":"IF(ISERROR(INDEX('Base données'!$D$4:$D$24,MATCH('Tableau d''analyse'!B15,'Base données'!$C$4:$C$24,0))),IF(ISERROR(INDEX('Base données'!$F$4:$F$24,MATCH('Tableau d''analyse'!B15,'Base données'!$E$4:$E$24,0))),IF(ISERROR(INDEX('Base données'!$H$4:$H$24,MATCH('Tableau d''analyse'!B15,'Base données'!$G$4:$G$24,0))),\"\",INDEX('Base données'!$H$4:$H$24,MATCH('Tableau d''analyse'!B15,'Base données'!$G$4:$G$24,0))),INDEX('Base données'!$F$4:$F$24,MATCH('Tableau d''analyse'!B15,'Base données'!$E$4:$E$24,0))),INDEX('Base données'!$D$4:$D$24,MATCH('Tableau d''analyse'!B15,'Base données'!$C$4:$C$24,0)))","v":"Assurance voiture C. L"}]
[null,21,{"$f":"IF(ISERROR(INDEX('Base données'!$D$4:$D$24,MATCH('Tableau d''analyse'!B16,'Base données'!$C$4:$C$24,0))),IF(ISERROR(INDEX('Base données'!$F$4:$F$24,MATCH('Tableau d''analyse'!B16,'Base données'!$E$4:$E$24,0))),IF(ISERROR(INDEX('Base données'!$H$4:$H$24,MATCH('Tableau d''analyse'!B16,'Base données'!$G$4:$G$24,0))),\"\",INDEX('Base données'!$H$4:$H$24,MATCH('Tableau d''analyse'!B16,'Base données'!$G$4:$G$24,0))),INDEX('Base données'!$F$4:$F$24,MATCH('Tableau d''analyse'!B16,'Base données'!$E$4:$E$24,0))),INDEX('Base données'!$D$4:$D$24,MATCH('Tableau d''analyse'!B16,'Base données'!$C$4:$C$24,0)))","v":"Affranchissement"}]
[null,null,{"$f":"IF(ISERROR(INDEX('Base données'!$D$4:$D$24,MATCH('Tableau d''analyse'!B17,'Base données'!$C$4:$C$24,0))),IF(ISERROR(INDEX('Base données'!$F$4:$F$24,MATCH('Tableau d''analyse'!B17,'Base données'!$E$4:$E$24,0))),IF(ISERROR(INDEX('Base données'!$H$4:$H$24,MATCH('Tableau d''analyse'!B17,'Base données'!$G$4:$G$24,0))),\"\",INDEX('Base données'!$H$4:$H$24,MATCH('Tableau d''analyse'!B17,'Base données'!$G$4:$G$24,0))),INDEX('Base données'!$F$4:$F$24,MATCH('Tableau d''analyse'!B17,'Base données'!$E$4:$E$24,0))),INDEX('Base données'!$D$4:$D$24,MATCH('Tableau d''analyse'!B17,'Base données'!$C$4:$C$24,0)))","v":""}]
[null,1,{"$f":"IF(ISERROR(INDEX('Base données'!$D$4:$D$24,MATCH('Tableau d''analyse'!B18,'Base données'!$C$4:$C$24,0))),IF(ISERROR(INDEX('Base données'!$F$4:$F$24,MATCH('Tableau d''analyse'!B18,'Base données'!$E$4:$E$24,0))),IF(ISERROR(INDEX('Base données'!$H$4:$H$24,MATCH('Tableau d''analyse'!B18,'Base données'!$G$4:$G$24,0))),\"\",INDEX('Base données'!$H$4:$H$24,MATCH('Tableau d''analyse'!B18,'Base données'!$G$4:$G$24,0))),INDEX('Base données'!$F$4:$F$24,MATCH('Tableau d''analyse'!B18,'Base données'!$E$4:$E$24,0))),INDEX('Base données'!$D$4:$D$24,MATCH('Tableau d''analyse'!B18,'Base données'!$C$4:$C$24,0)))","v":"UR"}]
[null,null,{"$f":"IF(ISERROR(INDEX('Base données'!$D$4:$D$24,MATCH('Tableau d''analyse'!B19,'Base données'!$C$4:$C$24,0))),IF(ISERROR(INDEX('Base données'!$F$4:$F$24,MATCH('Tableau d''analyse'!B19,'Base données'!$E$4:$E$24,0))),IF(ISERROR(INDEX('Base données'!$H$4:$H$24,MATCH('Tableau d''analyse'!B19,'Base données'!$G$4:$G$24,0))),\"\",INDEX('Base données'!$H$4:$H$24,MATCH('Tableau d''analyse'!B19,'Base données'!$G$4:$G$24,0))),INDEX('Base données'!$F$4:$F$24,MATCH('Tableau d''analyse'!B19,'Base données'!$E$4:$E$24,0))),INDEX('Base données'!$D$4:$D$24,MATCH('Tableau d''analyse'!B19,'Base données'!$C$4:$C$24,0)))","v":""}]
[null,1,{"$f":"IF(ISERROR(INDEX('Base données'!$D$4:$D$24,MATCH('Tableau d''analyse'!B20,'Base données'!$C$4:$C$24,0))),IF(ISERROR(INDEX('Base données'!$F$4:$F$24,MATCH('Tableau d''analyse'!B20,'Base données'!$E$4:$E$24,0))),IF(ISERROR(INDEX('Base données'!$H$4:$H$24,MATCH('Tableau d''analyse'!B20,'Base données'!$G$4:$G$24,0))),\"\",INDEX('Base données'!$H$4:$H$24,MATCH('Tableau d''analyse'!B20,'Base données'!$G$4:$G$24,0))),INDEX('Base données'!$F$4:$F$24,MATCH('Tableau d''analyse'!B20,'Base données'!$E$4:$E$24,0))),INDEX('Base données'!$D$4:$D$24,MATCH('Tableau d''analyse'!B20,'Base données'!$C$4:$C$24,0)))","v":"UR"}]
[null,null,{"$f":"IF(ISERROR(INDEX('Base données'!$D$4:$D$24,MATCH('Tableau d''analyse'!B21,'Base données'!$C$4:$C$24,0))),IF(ISERROR(INDEX('Base données'!$F$4:$F$24,MATCH('Tableau d''analyse'!B21,'Base données'!$E$4:$E$24,0))),IF(ISERROR(INDEX('Base données'!$H$4:$H$24,MATCH('Tableau d''analyse'!B21,'Base données'!$G$4:$G$24,0))),\"\",INDEX('Base données'!$H$4:$H$24,MATCH('Tableau d''analyse'!B21,'Base données'!$G$4:$G$24,0))),INDEX('Base données'!$F$4:$F$24,MATCH('Tableau d''analyse'!B21,'Base données'!$E$4:$E$24,0))),INDEX('Base données'!$D$4:$D$24,MATCH('Tableau d''analyse'!B21,'Base données'!$C$4:$C$24,0)))","v":""}]
[null,null,{"$f":"IF(ISERROR(INDEX('Base données'!$D$4:$D$24,MATCH('Tableau d''analyse'!B22,'Base données'!$C$4:$C$24,0))),IF(ISERROR(INDEX('Base données'!$F$4:$F$24,MATCH('Tableau d''analyse'!B22,'Base données'!$E$4:$E$24,0))),IF(ISERROR(INDEX('Base données'!$H$4:$H$24,MATCH('Tableau d''analyse'!B22,'Base données'!$G$4:$G$24,0))),\"\",INDEX('Base données'!$H$4:$H$24,MATCH('Tableau d''analyse'!B22,'Base données'!$G$4:$G$24,0))),INDEX('Base données'!$F$4:$F$24,MATCH('Tableau d''analyse'!B22,'Base données'!$E$4:$E$24,0))),INDEX('Base données'!$D$4:$D$24,MATCH('Tableau d''analyse'!B22,'Base données'!$C$4:$C$24,0)))","v":""}]
[null,null,{"$f":"IF(ISERROR(INDEX('Base données'!$D$4:$D$24,MATCH('Tableau d''analyse'!B23,'Base données'!$C$4:$C$24,0))),IF(ISERROR(INDEX('Base données'!$F$4:$F$24,MATCH('Tableau d''analyse'!B23,'Base données'!$E$4:$E$24,0))),IF(ISERROR(INDEX('Base données'!$H$4:$H$24,MATCH('Tableau d''analyse'!B23,'Base données'!$G$4:$G$24,0))),\"\",INDEX('Base données'!$H$4:$H$24,MATCH('Tableau d''analyse'!B23,'Base données'!$G$4:$G$24,0))),INDEX('Base données'!$F$4:$F$24,MATCH('Tableau d''analyse'!B23,'Base données'!$E$4:$E$24,0))),INDEX('Base données'!$D$4:$D$24,MATCH('Tableau d''analyse'!B23,'Base données'!$C$4:$C$24,0)))","v":""}]
[null,null,{"$f":"IF(ISERROR(INDEX('Base données'!$D$4:$D$24,MATCH('Tableau d''analyse'!B24,'Base données'!$C$4:$C$24,0))),IF(ISERROR(INDEX('Base données'!$F$4:$F$24,MATCH('Tableau d''analyse'!B24,'Base données'!$E$4:$E$24,0))),IF(ISERROR(INDEX('Base données'!$H$4:$H$24,MATCH('Tableau d''analyse'!B24,'Base données'!$G$4:$G$24,0))),\"\",INDEX('Base données'!$H$4:$H$24,MATCH('Tableau d''analyse'!B24,'Base données'!$G$4:$G$24,0))),INDEX('Base données'!$F$4:$F$24,MATCH('Tableau d''analyse'!B24,'Base données'!$E$4:$E$24,0))),INDEX('Base données'!$D$4:$D$24,MATCH('Tableau d''analyse'!B24,'Base données'!$C$4:$C$24,0)))","v":""}]
[null,null,{"$f":"IF(ISERROR(INDEX('Base données'!$D$4:$D$24,MATCH('Tableau d''analyse'!B25,'Base données'!$C$4:$C$24,0))),IF(ISERROR(INDEX('Base données'!$F$4:$F$24,MATCH('Tableau d''analyse'!B25,'Base données'!$E$4:$E$24,0))),IF(ISERROR(INDEX('Base données'!$H$4:$H$24,MATCH('Tableau d''analyse'!B25,'Base données'!$G$4:$G$24,0))),\"\",INDEX('Base données'!$H$4:$H$24,MATCH('Tableau d''analyse'!B25,'Base données'!$G$4:$G$24,0))),INDEX('Base données'!$F$4:$F$24,MATCH('Tableau d''analyse'!B25,'Base données'!$E$4:$E$24,0))),INDEX('Base données'!$D$4:$D$24,MATCH('Tableau d''analyse'!B25,'Base données'!$C$4:$C$24,0)))","v":""}]
[null,null,{"$f":"IF(ISERROR(INDEX('Base données'!$D$4:$D$24,MATCH('Tableau d''analyse'!B26,'Base données'!$C$4:$C$24,0))),IF(ISERROR(INDEX('Base données'!$F$4:$F$24,MATCH('Tableau d''analyse'!B26,'Base données'!$E$4:$E$24,0))),IF(ISERROR(INDEX('Base données'!$H$4:$H$24,MATCH('Tableau d''analyse'!B26,'Base données'!$G$4:$G$24,0))),\"\",INDEX('Base données'!$H$4:$H$24,MATCH('Tableau d''analyse'!B26,'Base données'!$G$4:$G$24,0))),INDEX('Base données'!$F$4:$F$24,MATCH('Tableau d''analyse'!B26,'Base données'!$E$4:$E$24,0))),INDEX('Base données'!$D$4:$D$24,MATCH('Tableau d''analyse'!B26,'Base données'!$C$4:$C$24,0)))","v":""}]
[null,null,{"$f":"IF(ISERROR(INDEX('Base données'!$D$4:$D$24,MATCH('Tableau d''analyse'!B27,'Base données'!$C$4:$C$24,0))),IF(ISERROR(INDEX('Base données'!$F$4:$F$24,MATCH('Tableau d''analyse'!B27,'Base données'!$E$4:$E$24,0))),IF(ISERROR(INDEX('Base données'!$H$4:$H$24,MATCH('Tableau d''analyse'!B27,'Base données'!$G$4:$G$24,0))),\"\",INDEX('Base données'!$H$4:$H$24,MATCH('Tableau d''analyse'!B27,'Base données'!$G$4:$G$24,0))),INDEX('Base données'!$F$4:$F$24,MATCH('Tableau d''analyse'!B27,'Base données'!$E$4:$E$24,0))),INDEX('Base données'!$D$4:$D$24,MATCH('Tableau d''analyse'!B27,'Base données'!$C$4:$C$24,0)))","v":""}]
[null,2,{"$f":"IF(ISERROR(INDEX('Base données'!$D$4:$D$24,MATCH('Tableau d''analyse'!B28,'Base données'!$C$4:$C$24,0))),IF(ISERROR(INDEX('Base données'!$F$4:$F$24,MATCH('Tableau d''analyse'!B28,'Base données'!$E$4:$E$24,0))),IF(ISERROR(INDEX('Base données'!$H$4:$H$24,MATCH('Tableau d''analyse'!B28,'Base données'!$G$4:$G$24,0))),\"\",INDEX('Base données'!$H$4:$H$24,MATCH('Tableau d''analyse'!B28,'Base données'!$G$4:$G$24,0))),INDEX('Base données'!$F$4:$F$24,MATCH('Tableau d''analyse'!B28,'Base données'!$E$4:$E$24,0))),INDEX('Base données'!$D$4:$D$24,MATCH('Tableau d''analyse'!B28,'Base données'!$C$4:$C$24,0)))","v":"CAR"}]
[null,3,{"$f":"IF(ISERROR(INDEX('Base données'!$D$4:$D$24,MATCH('Tableau d''analyse'!B29,'Base données'!$C$4:$C$24,0))),IF(ISERROR(INDEX('Base données'!$F$4:$F$24,MATCH('Tableau d''analyse'!B29,'Base données'!$E$4:$E$24,0))),IF(ISERROR(INDEX('Base données'!$H$4:$H$24,MATCH('Tableau d''analyse'!B29,'Base données'!$G$4:$G$24,0))),\"\",INDEX('Base données'!$H$4:$H$24,MATCH('Tableau d''analyse'!B29,'Base données'!$G$4:$G$24,0))),INDEX('Base données'!$F$4:$F$24,MATCH('Tableau d''analyse'!B29,'Base données'!$E$4:$E$24,0))),INDEX('Base données'!$D$4:$D$24,MATCH('Tableau d''analyse'!B29,'Base données'!$C$4:$C$24,0)))","v":"NOV"}]
[null,42,{"$f":"IF(ISERROR(INDEX('Base données'!$D$4:$D$24,MATCH('Tableau d''analyse'!B30,'Base données'!$C$4:$C$24,0))),IF(ISERROR(INDEX('Base données'!$F$4:$F$24,MATCH('Tableau d''analyse'!B30,'Base données'!$E$4:$E$24,0))),IF(ISERROR(INDEX('Base données'!$H$4:$H$24,MATCH('Tableau d''analyse'!B30,'Base données'!$G$4:$G$24,0))),\"\",INDEX('Base données'!$H$4:$H$24,MATCH('Tableau d''analyse'!B30,'Base données'!$G$4:$G$24,0))),INDEX('Base données'!$F$4:$F$24,MATCH('Tableau d''analyse'!B30,'Base données'!$E$4:$E$24,0))),INDEX('Base données'!$D$4:$D$24,MATCH('Tableau d''analyse'!B30,'Base données'!$C$4:$C$24,0)))","v":"Indemnité km "}]
[null,43,{"$f":"IF(ISERROR(INDEX('Base données'!$D$4:$D$24,MATCH('Tableau d''analyse'!B31,'Base données'!$C$4:$C$24,0))),IF(ISERROR(INDEX('Base données'!$F$4:$F$24,MATCH('Tableau d''analyse'!B31,'Base données'!$E$4:$E$24,0))),IF(ISERROR(INDEX('Base données'!$H$4:$H$24,MATCH('Tableau d''analyse'!B31,'Base données'!$G$4:$G$24,0))),\"\",INDEX('Base données'!$H$4:$H$24,MATCH('Tableau d''analyse'!B31,'Base données'!$G$4:$G$24,0))),INDEX('Base données'!$F$4:$F$24,MATCH('Tableau d''analyse'!B31,'Base données'!$E$4:$E$24,0))),INDEX('Base données'!$D$4:$D$24,MATCH('Tableau d''analyse'!B31,'Base données'!$C$4:$C$24,0)))","v":"Indemnité km pénal"}]
[null,null,{"$f":"IF(ISERROR(INDEX('Base données'!$D$4:$D$24,MATCH('Tableau d''analyse'!B32,'Base données'!$C$4:$C$24,0))),IF(ISERROR(INDEX('Base données'!$F$4:$F$24,MATCH('Tableau d''analyse'!B32,'Base données'!$E$4:$E$24,0))),IF(ISERROR(INDEX('Base données'!$H$4:$H$24,MATCH('Tableau d''analyse'!B32,'Base données'!$G$4:$G$24,0))),\"\",INDEX('Base données'!$H$4:$H$24,MATCH('Tableau d''analyse'!B32,'Base données'!$G$4:$G$24,0))),INDEX('Base données'!$F$4:$F$24,MATCH('Tableau d''analyse'!B32,'Base données'!$E$4:$E$24,0))),INDEX('Base données'!$D$4:$D$24,MATCH('Tableau d''analyse'!B32,'Base données'!$C$4:$C$24,0)))","v":""}]
[null,null,{"$f":"IF(ISERROR(INDEX('Base données'!$D$4:$D$24,MATCH('Tableau d''analyse'!B33,'Base données'!$C$4:$C$24,0))),IF(ISERROR(INDEX('Base données'!$F$4:$F$24,MATCH('Tableau d''analyse'!B33,'Base données'!$E$4:$E$24,0))),IF(ISERROR(INDEX('Base données'!$H$4:$H$24,MATCH('Tableau d''analyse'!B33,'Base données'!$G$4:$G$24,0))),\"\",INDEX('Base données'!$H$4:$H$24,MATCH('Tableau d''analyse'!B33,'Base données'!$G$4:$G$24,0))),INDEX('Base données'!$F$4:$F$24,MATCH('Tableau d''analyse'!B33,'Base données'!$E$4:$E$24,0))),INDEX('Base données'!$D$4:$D$24,MATCH('Tableau d''analyse'!B33,'Base données'!$C$4:$C$24,0)))","v":""}]
[null,null,{"$f":"IF(ISERROR(INDEX('Base données'!$D$4:$D$24,MATCH('Tableau d''analyse'!B34,'Base données'!$C$4:$C$24,0))),IF(ISERROR(INDEX('Base données'!$F$4:$F$24,MATCH('Tableau d''analyse'!B34,'Base données'!$E$4:$E$24,0))),IF(ISERROR(INDEX('Base données'!$H$4:$H$24,MATCH('Tableau d''analyse'!B34,'Base données'!$G$4:$G$24,0))),\"\",INDEX('Base données'!$H$4:$H$24,MATCH('Tableau d''analyse'!B34,'Base données'!$G$4:$G$24,0))),INDEX('Base données'!$F$4:$F$24,MATCH('Tableau d''analyse'!B34,'Base données'!$E$4:$E$24,0))),INDEX('Base données'!$D$4:$D$24,MATCH('Tableau d''analyse'!B34,'Base données'!$C$4:$C$24,0)))","v":""}]
[null,null,{"$f":"IF(ISERROR(INDEX('Base données'!$D$4:$D$24,MATCH('Tableau d''analyse'!B35,'Base données'!$C$4:$C$24,0))),IF(ISERROR(INDEX('Base données'!$F$4:$F$24,MATCH('Tableau d''analyse'!B35,'Base données'!$E$4:$E$24,0))),IF(ISERROR(INDEX('Base données'!$H$4:$H$24,MATCH('Tableau d''analyse'!B35,'Base données'!$G$4:$G$24,0))),\"\",INDEX('Base données'!$H$4:$H$24,MATCH('Tableau d''analyse'!B35,'Base données'!$G$4:$G$24,0))),INDEX('Base données'!$F$4:$F$24,MATCH('Tableau d''analyse'!B35,'Base données'!$E$4:$E$24,0))),INDEX('Base données'!$D$4:$D$24,MATCH('Tableau d''analyse'!B35,'Base données'!$C$4:$C$24,0)))","v":""}]
[null,null,{"$f":"IF(ISERROR(INDEX('Base données'!$D$4:$D$24,MATCH('Tableau d''analyse'!B36,'Base données'!$C$4:$C$24,0))),IF(ISERROR(INDEX('Base données'!$F$4:$F$24,MATCH('Tableau d''analyse'!B36,'Base données'!$E$4:$E$24,0))),IF(ISERROR(INDEX('Base données'!$H$4:$H$24,MATCH('Tableau d''analyse'!B36,'Base données'!$G$4:$G$24,0))),\"\",INDEX('Base données'!$H$4:$H$24,MATCH('Tableau d''analyse'!B36,'Base données'!$G$4:$G$24,0))),INDEX('Base données'!$F$4:$F$24,MATCH('Tableau d''analyse'!B36,'Base données'!$E$4:$E$24,0))),INDEX('Base données'!$D$4:$D$24,MATCH('Tableau d''analyse'!B36,'Base données'!$C$4:$C$24,0)))","v":""}]
[null,null,{"$f":"IF(ISERROR(INDEX('Base données'!$D$4:$D$24,MATCH('Tableau d''analyse'!B37,'Base données'!$C$4:$C$24,0))),IF(ISERROR(INDEX('Base données'!$F$4:$F$24,MATCH('Tableau d''analyse'!B37,'Base données'!$E$4:$E$24,0))),IF(ISERROR(INDEX('Base données'!$H$4:$H$24,MATCH('Tableau d''analyse'!B37,'Base données'!$G$4:$G$24,0))),\"\",INDEX('Base données'!$H$4:$H$24,MATCH('Tableau d''analyse'!B37,'Base données'!$G$4:$G$24,0))),INDEX('Base données'!$F$4:$F$24,MATCH('Tableau d''analyse'!B37,'Base données'!$E$4:$E$24,0))),INDEX('Base données'!$D$4:$D$24,MATCH('Tableau d''analyse'!B37,'Base données'!$C$4:$C$24,0)))","v":""}]
[null,2,{"$f":"IF(ISERROR(INDEX('Base données'!$D$4:$D$24,MATCH('Tableau d''analyse'!B38,'Base données'!$C$4:$C$24,0))),IF(ISERROR(INDEX('Base données'!$F$4:$F$24,MATCH('Tableau d''analyse'!B38,'Base données'!$E$4:$E$24,0))),IF(ISERROR(INDEX('Base données'!$H$4:$H$24,MATCH('Tableau d''analyse'!B38,'Base données'!$G$4:$G$24,0))),\"\",INDEX('Base données'!$H$4:$H$24,MATCH('Tableau d''analyse'!B38,'Base données'!$G$4:$G$24,0))),INDEX('Base données'!$F$4:$F$24,MATCH('Tableau d''analyse'!B38,'Base données'!$E$4:$E$24,0))),INDEX('Base données'!$D$4:$D$24,MATCH('Tableau d''analyse'!B38,'Base données'!$C$4:$C$24,0)))","v":"CAR"}]
[null,5,{"$f":"IF(ISERROR(INDEX('Base données'!$D$4:$D$24,MATCH('Tableau d''analyse'!B39,'Base données'!$C$4:$C$24,0))),IF(ISERROR(INDEX('Base données'!$F$4:$F$24,MATCH('Tableau d''analyse'!B39,'Base données'!$E$4:$E$24,0))),IF(ISERROR(INDEX('Base données'!$H$4:$H$24,MATCH('Tableau d''analyse'!B39,'Base données'!$G$4:$G$24,0))),\"\",INDEX('Base données'!$H$4:$H$24,MATCH('Tableau d''analyse'!B39,'Base données'!$G$4:$G$24,0))),INDEX('Base données'!$F$4:$F$24,MATCH('Tableau d''analyse'!B39,'Base données'!$E$4:$E$24,0))),INDEX('Base données'!$D$4:$D$24,MATCH('Tableau d''analyse'!B39,'Base données'!$C$4:$C$24,0)))","v":"CO"}]
[null,4,{"$f":"IF(ISERROR(INDEX('Base données'!$D$4:$D$24,MATCH('Tableau d''analyse'!B40,'Base données'!$C$4:$C$24,0))),IF(ISERROR(INDEX('Base données'!$F$4:$F$24,MATCH('Tableau d''analyse'!B40,'Base données'!$E$4:$E$24,0))),IF(ISERROR(INDEX('Base données'!$H$4:$H$24,MATCH('Tableau d''analyse'!B40,'Base données'!$G$4:$G$24,0))),\"\",INDEX('Base données'!$H$4:$H$24,MATCH('Tableau d''analyse'!B40,'Base données'!$G$4:$G$24,0))),INDEX('Base données'!$F$4:$F$24,MATCH('Tableau d''analyse'!B40,'Base données'!$E$4:$E$24,0))),INDEX('Base données'!$D$4:$D$24,MATCH('Tableau d''analyse'!B40,'Base données'!$C$4:$C$24,0)))","v":"OP"}]